Workbook

Sheet Geodesie
A1: Paramètres de Base des Géodésies Utilisées
A3: Index | D3: Système 1 | G3: Index | J3: Système 2
A4: Datum: | B4: 1 | D4: Région & Datum: | E4: =(INDEX('Table Datum Shifts'!B15:B203,B4)) -> Monde / WGS84 | G4: Datum: | H4: 45 | J4: Région & Datum: | K4: =(INDEX('Table Datum Shifts'!B15:B203,H4)) -> France / IGN/NTF
A5: Spheroide: | B5: 42 | D5: Ellipsoïde: | E5: =INDEX(Spheroides!C8:C56,B5) -> WGS 84 | G5: Sphéroïde: | H5: 12 | J5: Ellipsoïde | K5: =INDEX(Spheroides!C8:C56,H5) -> CLARKE 1880 IGN
D6: Gd Axe: | E6: =INDEX(Spheroides!D8:D56,B5) -> 6378137 | J6: Gd Axe | K6: =INDEX(Spheroides!D8:D56,H5) -> 6378249.2
D7: Pt Axe: | E7: =INDEX(Spheroides!E8:E56,B5) -> 6356752.314 | J7: Pt Axe | K7: =INDEX(Spheroides!E8:E56,H5) -> 6356515
D8: e2 | E8: =INDEX(Spheroides!F8:F56,B5) -> 0.006694380067 | J8: e2 | K8: =INDEX(Spheroides!F8:F56,H5) -> 0.006803487646
D9: n | E9: =INDEX(Spheroides!G8:G56,B5) -> 0.001679220406 | J9: n | K9: =INDEX(Spheroides!G8:G56,H5) -> 0
D10: 1 / f | E10: =INDEX(Spheroides!H8:H56,B5) -> 298.2572201 | J10: 1 / f | K10: =INDEX(Spheroides!H8:H56,H5) -> 293.4660213
D16: Datum Shifts de 1 vers 2
D17: Dx | E17: 168
D18: Dy | E18: 60
D19: Dz | E19: -320
D20: Rx | E20: 0
D21: Ry | E21: 0
D22: Rz | E22: 0
D23: ppm | E23: 54.74
A25: "+0168,00;+0060,00;-0320,00;-0,000;-0,000;-0,000;+54,740"
A26: =INDEX('Table Datum Shifts'!D15:GC203,H4,B4) -> "-0168,00;-0060,00;+0320,00;-0,000;-0,000;-0,000;-54,74"

Sheet Conversion
B3: Géodésie 1 | E3: =Geodesie!E4 -> Monde / WGS84 | L3: Géodésie 2 | O3: =Geodesie!K4 -> France / IGN/NTF
B4: Sphéroïde | E4: =Geodesie!E5 -> WGS 84 | L4: Sphéroïde | O4: =Geodesie!K5 -> CLARKE 1880 IGN
B5: =B8+C8/60+D8/3600 -> 43.165 | C5: =CaGeLon1(B28,F28) ->  | D5: =(ABS(B5)-ABS(B8))*60 -> 9.9 | F5: =F8+G8/60+H8/3600 -> 2.337229167 | H5: =(ABS(C5)-ABS(F8))*60 ->  | L5: =geoshiftlat(C10,D10,G10,H10) -> 43.16497876 | N5: =(ABS(L5)-ABS(L8))*60 -> 9.898725878 | P5: =geoshiftlon(C10,D10,G10,H10) -> 2.33788205 | R5: =(ABS(P5)-ABS(P8))*60 -> 20.27292297
B6: Coordonnées Géographiques | L6: Coordonnées Géographiques
B7: Latitude | F7: Longitude | J7: Elévation | L7: Latitude | P7: Longitude | T7: Elévation
B8: 43 | C8: 9 | D8: 54 | E8: =IF(B5<0,"S","N") -> N | F8: 2 | G8: 20 | H8: 14.025 | I8: =IF(F5<0,"W","E") -> E | J8: 0 | L8: =TRUNC(L5,0) -> 43 | M8: =TRUNC((ABS(L5)-ABS(L8))*60) -> 9 | N8: =(N5-M8)*60 -> 53.92355266 | O8: =IF(L5<0,"S","N") -> N | P8: =TRUNC(P5,0) -> 2 | Q8: =TRUNC((ABS(P5)-ABS(P8))*60) -> 20 | R8: =(R5-Q8)*60 -> 16.37537824 | S8: =IF(P5<0,"W","E") -> E | T8: =elevation2(C10,D10,G10,H10,J8) -> 304.9754455
C9: Latitude | G9: Longitude | M9: Latitude | Q9: Longitude
C10: =TRUNC(B5,0) -> 43 | D10: =ABS(B5-TRUNC(B5,0))*60 -> 9.9 | E10: =IF(B5<0,"S","N") -> N | G10: =TRUNC(F5,0) -> 2 | H10: =ABS(F5-F8)*60 -> 20.23375 | I10: =IF(F5<0,"W","E") -> E | M10: =TRUNC(L5,0) -> 43 | N10: =ABS(L5-TRUNC(L5,0))*60 -> 9.898725878 | O10: =IF(L5<0,"S","N") -> N | Q10: =TRUNC(P5,0) -> 2 | R10: =ABS(P5-P8)*60 -> 20.27292297 | S10: =IF(P5<0,"W","E") -> E

Sheet Spheroides (hidden)
A1: Liste des Ellipsoides Disponibles
C7: Nom | D7: Demi Grand | E7: Demi Petit | F7: e2 | G7: n | H7: 1 / f
B8: 1 | C8: AIRY | D8: 6377563.396 | E8: 6356256.909 | F8: =POWER(1/D8*(SQRT((D8*D8)-(E8*E8))),2) -> 0.006670540074 | G8: 0.00167322025 | H8: =1/((D8-E8)/D8) -> 299.3249613
B9: 2 | C9: AIRY MOD | D9: 6377340.189 | E9: 6356034.448 | F9: 0.006670539981 | G9: 0.001673220305 | H9: 299.3249655
B10: 3 | C10: AUSTRALIAN NATIONAL 1967/84 | D10: 6378160 | E10: 6356774.719 | F10: 0.006694541916 | H10: 298.2499973
B11: 4 | C11: BESSEL 1841 | D11: 6377397.155 | E11: 6356078.963 | F11: 0.006674372175 | G11: 0.001674184787 | H11: 299.1528154
B12: 5 | C12: BESSEL 1841 MOD | D12: 6377483.865 | E12: 6356165.383 | F12: 0.006674372221 | G12: 0.001674184798 | H12: 299.1528133
B13: 6 | C13: BESSEL NGO | D13: 6377492.018 | E13: 6356173.509 | F13: 0.006674372142 | H13: 299.1528168
B14: 7 | C14: BESSEL RD / POTSDAM | D14: 6377397.155 | E14: 6356078.963 | F14: 0.006674372175 | H14: 299.1528154
B15: 8 | C15: BROADCAST | D15: 6378135 | E15: 6356750.52 | F15: 0.006694317783 | H15: 298.2599998
B16: 9 | C16: CLARKE 1856 | D16: 6378235.6 | E16: 6356560.14 | F16: 0.00678514592 | H16: 294.2606801
B17: 10 | C17: CLARKE 1866 | D17: 6378206.4 | E17: 6356583.8 | F17: 0.006768657997 | G17: 0.001697915683 | H17: 294.9786982
B18: 11 | C18: CLARKE 1880 | D18: 6378249.145 | E18: 6356514.87 | F18: 0.006803511142 | G18: 0.001706688477 | H18: 293.4650061
B19: 12 | C19: CLARKE 1880 IGN | D19: 6378249.2 | E19: 6356515 | F19: 0.006803487646 | H19: 293.4660213
B20: 13 | C20: CLARKE 1880 MOD | D20: 6378249.145 | E20: 6356514.87 | F20: 0.006803511142 | G20: 0.001706688477 | H20: 293.4650061
B21: 14 | C21: CLARKE 1880 (PALESTINE) | D21: 6378300.782 | E21: 6356566.427 | F21: 0.006803481156 | H21: 293.4663017
B22: 15 | C22: DANISH 1876 / ANDRAE | D22: 6377104.43 | E22: 6355847.415 | F22: 0.006655555628 | H22: 299.9999967
B23: 16 | C23: EVEREST (INDE) METRIQUE | D23: 6377301.243 | E23: 6356100.23 | F23: 0.00663784612 | H23: 300.8017232
B24: 17 | C24: EVEREST (MALAYA) | D24: 6377295.664 | E24: 6356094.668 | F24: 0.006637846604 | H24: 300.8017012
B25: 18 | C25: EVEREST 1830 | D25: 6377276.345 | E25: 6356075.413 | F25: 0.006637846674 | G25: 0.001664992251 | H25: 300.801698
B26: 19 | C26: EVEREST 1830 (MOD.) | D26: 6377298.561 | E26: 6356097.555 | F26: 0.006637846719 | H26: 300.801696
B27: 20 | C27: EVEREST BORNEO | D27: 6377298.556 | E27: 6356097.555 | F27: 0.006637845161 | H27: 300.8017667
B28: 21 | C28: EVEREST MOD. | D28: 6377304.063 | E28: 6356103.039 | F28: 0.006637846628 | H28: 300.8017001
B29: 22 | C29: FISHER 1960 (MERCURY) | D29: 6378166 | E29: 6356784.284 | F29: 0.0066934215 | H29: 298.3000055
B30: 23 | C30: FISHER 1968 | D30: 6378150 | E30: 6356768.337 | F30: 0.006693421699 | H30: 298.2999966
B31: 24 | C31: FISCHER MOD | D31: 6378160 | E31: 6356774.719 | F31: 0.006694541916 | G31: 0.00167926114 | H31: 298.2499973
B32: 25 | C32: FISHER MOD. 1960 | D32: 6378155 | E32: 6356773.32 | F32: 0.006693421774 | H32: 298.2999933
B33: 26 | C33: GRS 67 | D33: 6378160 | E33: 6356774.516 | F33: 0.006694605357 | H33: 298.2471662
B34: 27 | C34: GRS 80 | D34: 6378137 | E34: 6356752.314 | F34: 0.006694380067 | H34: 298.2572201
B35: 28 | C35: HELMERT 1906 | D35: 6378200 | E35: 6356818 | F35: 0.006693474635 | G35: 0.001678992523 | H35: 298.2976335
B36: 29 | C36: HOUGH | D36: 6378270 | E36: 6356794.343 | F36: 0.006722670158 | G36: 0.001686340675 | H36: 296.999994
B37: 30 | C37: INTERNATIONAL | D37: 6378388 | E37: 6356911.946 | F37: 0.006722670062 | G37: 0.001686340651 | H37: 296.9999982
B38: 31 | C38: JEFFREYS 1948 | D38: 6378099 | E38: 6356631 | F38: 0.006720457146 | H38: 297.0979598
B39: 32 | C39: KRASSOVSKY | D39: 6378245 | E39: 6356863 | F39: 0.00669342749 | G39: 0.001678980657 | H39: 298.2997381
B40: 33 | C40: PRECISE | D40: 6378145 | E40: 6356759.769 | F40: 0.006694542007 | G40: 0.001679261164 | H40: 298.2499932
B41: 34 | C41: REF ELLIPSOIDE 1967 | D41: 6378160 | E41: 6356774.719 | F41: 0.006694541916 | G41: 0.00167926114 | H41: 298.2499973
B42: 35 | C42: S AMERICA 1969 | D42: 6378160 | E42: 6356774.719 | F42: 0.006694541916 | G42: 0.00167926114 | H42: 298.2499973
B43: 36 | C43: STRUVE 1860 | D43: 6378298.3 | E43: 6356657.143 | F43: 0.006774359698 | H43: 294.7300045
B44: 37 | C44: SVANBERG | D44: 6376797 | E44: 6355837.971 | F44: 0.006562725865 | H44: 304.2505929
B45: 38 | C45: WAR OFFICE 1924 | D45: 6378300 | E45: 6356751.689 | F45: 0.006745343375 | H45: 295.9999974
B46: 39 | C46: WGS 60 | D46: 6378165 | E46: 6356783.287 | F46: 0.00669342161 | H46: 298.3000006
B47: 40 | C47: WGS 66 | D47: 6378145 | E47: 6356759.769 | F47: 0.006694542007 | H47: 298.2499932
B48: 41 | C48: WGS 72 | D48: 6378135 | E48: 6356750.52 | F48: 0.006694317783 | G48: 0.00167920473 | H48: 298.2599998
B49: 42 | C49: WGS 84 | D49: 6378137 | E49: 6356752.314 | F49: 0.006694380067 | G49: 0.001679220406 | H49: 298.2572201
B50: 43
B51: 44
B52: 45
B53: 46

Sheet Table Datum Shifts (hidden)
A1: Datum System 1 | C1: "-0136,00;-0108,00;-0292,00;-0,000;-0,000;-0,000;-0,000"
A2: Datum System 2 | C2: "-0168,00;-0060,00;+0320,00;-0,000;-0,000;-0,000;-54,74"
C3: =MID(C1,2,8) -> -0136,00 | D3: =MID(C1,11,8) -> -0108,00 | E3: =MID(C1,20,8) -> -0292,00 | F3: =MID(C1,29,6) -> -0,000 | G3: =MID(C1,36,6) -> -0,000 | H3: =MID(C1,43,6) -> -0,000 | I3: =MID(C1,50,6) -> -0,000
C4: =MID(C2,2,8) -> -0168,00 | D4: =MID(C2,11,8) -> -0060,00 | E4: =MID(C2,20,8) -> +0320,00 | F4: =MID(C2,29,6) -> -0,000 | G4: =MID(C2,36,6) -> -0,000 | H4: =MID(C2,43,6) -> -0,000 | I4: =MID(C2,50,6) -> -54,74
C5: =C3-C4 -> 32 | D5: -48 | E5: -612 | F5: 0 | G5: 0 | H5: 0 | I5: 54.74
C6: =ABS(C5) -> 32 | D6: 48 | E6: 612 | F6: 0 | G6: 0 | H6: 0 | I6: 54.74
C7: =TEXT(C6,"0000,00") -> 0032,00 | D7: =TEXT(D6,"0000,00") -> 0048,00 | E7: =TEXT(E6,"0000,00") -> 0612,00 | F7: =TEXT(F6,"0,000") -> 0,000 | G7: =TEXT(G6,"0,000") -> 0,000 | H7: =TEXT(H6,"0,000") -> 0,000 | I7: =TEXT(I6,"0,000") -> 54,740
C8: =IF(C5>0,CONCATENATE("+",C7),CONCATENATE("-",C7)) -> +0032,00 | D8: -0048,00 | E8: -0612,00 | F8: -0,000 | G8: -0,000 | H8: -0,000 | I8: +54,740
C9: =CONCATENATE("""",C8,";") -> "+0032,00; | D9: =CONCATENATE(D8,";") -> -0048,00; | E9: =CONCATENATE(E8,";") -> -0612,00; | F9: =CONCATENATE(F8,";") -> -0,000; | G9: =CONCATENATE(G8,";") -> -0,000; | H9: =CONCATENATE(H8,";") -> -0,000; | I9: =CONCATENATE(I8,"""") -> +54,740"
A10: Datum Calcule | C10: =CONCATENATE(C9,D9,E9,F9,G9,H9,I9) -> "+0032,00;-0048,00;-0612,00;-0,000;-0,000;-0,000;+54,740"
D12: Vers | E12: Vers | F12: Vers | G12: Vers | H12: Vers | I12: Vers | J12: Vers | K12: Vers | L12: Vers | M12: Vers | N12: Vers | O12: Vers | P12: Vers | Q12: Vers | R12: Vers | S12: Vers | T12: Vers | U12: Vers | V12: Vers | W12: Vers | X12: Vers | Z12: Vers | AA12: Vers | AB12: Vers | AC12: Vers | AE12: Vers | AF12: Vers | AG12: Vers | AH12: Vers | AJ12: Vers | AK12: Vers | AL12: Vers | AM12: Vers | AN12: Vers | AP12: Vers | AQ12: Vers | AR12: Vers | AS12: Vers | AU12: Vers | AV12: Vers | AW12: Vers | AX12: Vers | AY12: Vers | AZ12: Vers | BB12: Vers | BC12: Vers | BD12: Vers | BE12: Vers | BF12: Vers | BG12: Vers | BH12: Vers | BI12: Vers | BJ12: Vers | BL12: Vers | BN12: Vers | BS12: Vers | BV12: Vers | BX12: Vers | BZ12: Vers | CA12: Vers | CB12: Vers | CD12: Vers | CE12: Vers | CF12: Vers | CG12: Vers | CI12: Vers | CJ12: Vers | CK12: Vers | CL12: Vers | CN12: Vers | CO12: Vers | CS12: Vers | CT12: Vers | CU12: Vers | CV12: Vers | CW12: Vers | CX12: Vers | CZ12: Vers | DD12: Vers | DE12: Vers | DF12: Vers | DG12: Vers | DH12: Vers | DL12: Vers | DN12: Vers | DO12: Vers | DP12: Vers | DQ12: Vers | DR12: Vers | DS12: Vers | DT12: Vers | DU12: Vers | DV12: Vers | DW12: Vers | DX12: Vers | DY12: Vers | DZ12: Vers | EA12: Vers | EB12: Vers | EC12: Vers | ED12: Vers | EF12: Vers | EG12: Vers | EH12: Vers | EI12: Vers | EJ12: Vers | EL12: Vers | EM12: Vers | EN12: Vers | EO12: Vers | EP12: Vers | EQ12: Vers | ER12: Vers | ET12: Vers | EU12: Vers | EV12: Vers | EX12: Vers | EY12: Vers | EZ12: Vers | FA12: Vers | FB12: Vers | FC12: Vers | FD12: Vers | FE12: Vers | FF12: Vers | FG12: Vers | FH12: Vers | FI12: Vers | FJ12: Vers | FK12: Vers | FL12: Vers | FM12: Vers | FN12: Vers | FP12: Vers | FQ12: Vers | FR12: Vers | FS12: Vers | FT12: Vers | FU12: Vers | FV12: Vers | FW12: Vers | FX12: Vers | FY12: Vers | FZ12: Vers | GA12: Vers | GB12: Vers
C13: Zone / Datum | D13: Monde / WGS84 | E13: Afrique du Sud / S Africa Cape | F13: Alaska / NAD27 | G13: Alaska / NAD27 | H13: Alaska / NAD83 | I13: Amerique Central / NAD83 | J13: Arabie Saoudite / Nahrwan | K13: Argentine / Campo Inchauste | L13: Argentine / S. America 1969 | M13: Australie / Australian Geodetic 1966 | N13: Australie / Australian Nat | O13: Australie / Autralian | P13: Bahrain / Ain El Abl 1970 | Q13: Bangladesh / Indian | R13: Belize / NAD27 | S13: Bolivie / Prov. S America 1956 | T13: Bolivie / S. America 1969 | U13: Botswana / Cape Arc 1950 | V13: Bresil / S. America 1969 | W13: Brunei / Timbalai | X13: Canada / NAD27 | Y13: Canada / NAD27 (Canada) | Z13: Canal Panama / NAD27 | AA13: Chili / Prov. S Chilean 63 | AB13: Chili / S. America 1969 | AC13: Chypre / ED50 | AD13: Colombie / Bogota Observatory | AE13: Colombie / Prov. S America 1956 | AF13: Colombie / S. America 1969 | AG13: Corée / Tokyo | AH13: Egypte / ED50 | AI13: Egypte / Old Egyptian | AJ13: Emirats Arabes Unifies / Nahrwan | AK13: Equateur / Prov. S American 1956 | AL13: Equateur / S American 1969 | AM13: Erytree / Massawa | AN13: Espagne / ED50 | AO13: Espiranto Santos / Santo (DOS) | AP13: Ethiopie / Adindan | AQ13: Europe / ED50 | AR13: Europe / ED87 | AS13: Finlande / ED50 | AT13: France / ED50 IGN | AU13: France / ED79 France | AV13: France / IGN/NTF | AW13: France / WGS72 France | AX13: Gabon / M'Paraloko | AY13: Gizo / Gizo DOS 1968 | AZ13: Grece / ED50 | BA13: Groenland / NAD27 | BB13: Groenland / Qornoq | BC13: Guatemala / NAD27 | BD13: Guyana / Prov. S American 1956 | BE13: Guyana / S American 1969 | BF13: Honduras / NAD27 | BG13: Hong Kong / Hong Kong 1963 | BH13: Icelande / Hjorsey 1955 | BI13: Ile d'Efate et Erromango / Bellevue (IGN) | BJ13: Ile d'Oahu / ? | BK13: Ile de Costa Rica / NAD27 | BL13: Ile de Cuba / NAD27 | BM13: Ile de Guam / Guam 1963 | BN13: Ile de Kerguelen / Kerguelen | BO13: Ile de l'Ascension / Ascension 1958 | BP13: Ile de la Barbades / NAD27 | BQ13: Ile de la Jamaique / NAD27 | BR13: Ile de Madere / SE Base | BS13: Ile de Sao Miguel / Sao Braz | BT13: Ile de Sardaigne / ED50 | BU13: Ile de Sardaigne / Rome 1940 | BV13: Ile de Sicile / ED50 | BW13: Ile de Tern / Asrto B4 | BX13: Ile Diego Garcia / ISTS 073 Astro 1969 | BY13: Ile Dominique / NAD27 | BZ13: Ile Georgia / DOS 1968 | CA13: Ile Grand Cayman / NAD27 | CB13: Ile Guadalcanal / Gux 1 Astro | CC13: Ile Hawaii / Old Hawaiian | CD13: Ile Hawaii Kauai / Old Hawaiian | CE13: Ile Hawaii Maui / Old Hawaiian | CF13: Ile Hawaii Oahu / Old Hawaiian | CG13: Ile Iwo Jima / Astro Beacon East | CH13: Ile Johnson / Johnson Is 1961 | CI13: Ile Mahe / Ile Mahe 1971 | CJ13: Ile Marcus / Asrto Stn 1952 | CK13: Ile Pitcairn / Pitcairn Astro 1967 | CL13: Ile Saint Helene / Astro DOS 7 | CM13: Ile Santa Maria / Sao Braz | CN13: Ile Tristan da Cunha / Tristan Astro | CO13: Ile Viti Levu / Viti Levu 1916 | CP13: Iles Bahamas / Cape Canaveral | CQ13: Iles Bahamas / NAD27 | CR13: Iles Caicos / NAD27 | CS13: Iles Caiman / LC 5 Astro | CT13: Iles Canaries / Pico de las Nieves | CU13: Iles Chatam / Ile Chatam 1971 | CV13: Iles Cocos / Australian | CW13: Iles de Mascarenes / Reunion | CX13: Iles de Midway / Midway Astro 1961 | CY13: Iles de Paques / Iles de Paques 1967 | CZ13: Iles des Açores / Observatorio 1966 | DA13: Iles des Açores / SW Base | DB13: Iles des Bermudes / Bermuda 1957 | DC13: Iles Falklands / Sapper Hill 1943 | DD13: Iles Maldives / Gandajika Base | DE13: Iles Marshall / Wake Eniwetok 1960 | DF13: Iles Phoenix / Canton Astro 1966 | DG13: Iles Salvages / Marco Astro | DH13: Iles Sous le Vent / NAD27 | DI13: Iles Trinité & Tobago / Naparima (BWI) | DJ13: Iles Trinité & Tobago / S. American 1969 | DK13: Iles Vierges / Puerto Rico | DL13: Iran / ED50 | DM13: Irelande / Ireland 1965 | DN13: Japon / Tokyo | DO13: Kenya / Cape Arc 1950 | DP13: Lesoto / Cape Arc 1950 | DQ13: Liberia / Liberia 1964 | DR13: Malaisie (Est) / Timbalia | DS13: Malaisie (Ouest) / Kertau 1948 | DT13: Malawi / Cape Arc 1950 | DU13: Mali / Adindan | DV13: Maroc / Merchich | DW13: Maui / Maui | DX13: Mexique / NAD27 | DY13: Mindanao / Luzon | DZ13: Monde / DOPLER | EA13: Monde / NWL 10D | EB13: Monde / NWL 9D | EC13: Monde / WGS 72 | ED13: Monde / WGS84 SEA | EE13: Namibie / Schwarzeck | EF13: Neherlandes / RD | EG13: Nepal / Indian | EH13: Nicaragua / NAD27 | EI13: Nigeria / Minna | EJ13: Norvège / ED50 | EK13: Nouvelles Zelandes / GD 1949 | EL13: Oman / Oman | EM13: Paraguay / Chua Astro | EN13: Paraguay / S American 1969 | EO13: Perou / Prov S American 1956 | EP13: Perou / S American 1969 | EQ13: Phillipines / Luzon 1911 | ER13: Portugal / ED50 | ES13: Puerto Rico / Puerto Rico | ET13: Qatar / Nahrwan | EU13: Qatar / Nahrwan Maersk | EV13: Qatar / Qatar National | EW13: Royaume Uni / DOPPLER | EX13: Royaume Uni / ED50 | EY13: Royaume Uni / OS(SN)80 | EZ13: Russie / Pulkovo | FA13: Russie / WGS72 | FB13: Sabah / Timbalai 1948 | FC13: San Salvador / NAD27 | FD13: Sarawak / Timbalai 1948 | FE13: Senegal / Adindan | FF13: Singapour / Kertau 1948 | FG13: Singapour / Kertau 1948 | FH13: Singapour / South Asia | FI13: Somalie / Afgooye | FJ13: Soudan / Adindan | FK13: Sri Lanka / Kandawala | FL13: Sumatra / Djakarta (Batavia) | FM13: Surinam / Zanderij | FN13: Swaziland / Cape Arc 1950 | FO13: Tanzanie / Cale Arc 1950 | FP13: Tasmanie / Australian National | FQ13: Thailande / Indian | FR13: Thailande / Moattama | FS13: Tunisie / Carthage | FT13: Turquie / NAD27 | FU13: USA / NAD27 (CONUS) | FV13: Venezuela / Prov. S. American 1956 | FW13: Venezuela / S. American 1969 | FX13: Vietnam / Indian | FY13: Zaire / Cape Arc 1950 | FZ13: Zambie / Cape Arc 1950 | GA13: Zimbabwe / Cape Arc 1950 | GB13: / | GC13: / | GD13: /
B14: Zone / Datum | C14: Spheroide | D14: WGS84 | E14: Clarke 1880 Mod. | F14: Clarke 1866 | G14: Clarke 1866 | H14: GRS80 | I14: GRS80 | J14: Clarke 1880 Mod. | K14: International | L14: S America 1969 | M14: RE 1967 | N14: RE 1967 | O14: RE 1984 | P14: International | Q14: Everest 1830 | R14: Clarke 1866 | S14: International | T14: S. America 1969 | U14: Clarke 1880 Mod. | V14: S. America 1969 | W14: Everest 1830 | X14: Clarke 1866 | Y14: Clarke 1866 | Z14: Clarke 1866 | AA14: International | AB14: S. America 1969 | AC14: International | AD14: International | AE14: International | AF14: S. America 1969 | AG14: Bessel 1841 | AH14: International | AI14: Helmert 1906 | AJ14: Clarke 1880 Mod | AK14: International | AL14: S American 1969 | AM14: Bessel 1841 | AN14: International | AO14: International | AP14: Clarke 1880 Mod | AQ14: International | AR14: International | AS14: International | AT14: International | AU14: International | AV14: Clarke 1880 (IGN) | AW14: WGS72 | AX14: Clarke 1880 | AY14: International | AZ14: International | BA14: Clarke 1866 | BB14: International | BC14: Clarke 1866 | BD14: International | BE14: S American | BF14: Clarke 1866 | BG14: International | BH14: International | BI14: International | BJ14: Clarke 1866 | BK14: Clarke 1866 | BL14: Clarke 1866 | BM14: Clarke 1966 | BN14: International | BO14: International | BP14: Clarke 1866 | BQ14: Clarke 1866 | BR14: International | BS14: International | BT14: International | BU14: International | BV14: International | BW14: International | BX14: International | BY14: Clarke 1866 | BZ14: International | CA14: Clarke 1866 | CB14: International | CC14: Clarke 1866 | CD14: Clarke 1866 | CE14: Clarke 1866 | CF14: Clarke 1866 | CG14: International | CH14: International | CI14: Clarke 1880 Mod | CJ14: International | CK14: International | CL14: International | CM14: International | CN14: International | CO14: Clarke 1880 Mod | CP14: Clarke 1866 | CQ14: Clarke 1866 | CR14: Clarke 1866 | CS14: Clarke 1866 | CT14: International | CU14: International | CV14: RE 1967 | CW14: International | CX14: International | CY14: International | CZ14: International | DA14: International | DB14: Clarke 1866 | DC14: International | DD14: International | DE14: Hough | DF14: International | DG14: International | DH14: Clarke 1866 | DI14: International | DJ14: S. American 1969 | DK14: Clarke 1866 | DL14: International | DM14: Airy Mod | DN14: Bessel 1841 | DO14: Clarke 1880 Mod | DP14: Clarke 1880 Mod | DQ14: Clarke 1880 Mod | DR14: Everest 1830 | DS14: Everest Mod | DT14: Clarke 1880 Mod | DU14: Clarke 1880 Mod | DV14: Clarke 1880 Mod | DW14: Clarke 1866 | DX14: Clarke 1866 | DY14: Clarke 1866 | DZ14: Precise | EA14: NWL 10D | EB14: NWL 9D | EC14: WGS 72 | ED14: WGS84 | EE14: Bessel 1841 Mod | EF14: Bessel RD | EG14: Everst 1830 | EH14: Clarke 1866 | EI14: Clarke 1880 Mod | EJ14: International | EK14: International | EL14: Clarke 1880 Mod | EM14: International | EN14: S American 1969 | EO14: International | EP14: S American 1969 | EQ14: Clarke 1866 | ER14: International | ES14: Clarke 1866 | ET14: Clarke 1880 Mod | EU14: Clarke 1880 Mod | EV14: International | EW14: Precise | EX14: International | EY14: Airy | EZ14: Krassovsky | FA14: WGS72 | FB14: Everest 1830 | FC14: Clarke 1866 | FD14: Everst 1830 | FE14: Clarke 1880 Mod | FF14: Everest Mod | FG14: Everest 1830 | FH14: Fisher Mod | FI14: Krassovsky | FJ14: Clarke 1880 Mod | FK14: Everest 1830 | FL14: Bessel 1841 | FM14: International | FN14: Clarke 1880 Mod | FO14: Clarke 1880 Mod | FP14: RE 1967 | FQ14: Everest 1830 | FR14: WGS84 | FS14: Clarke 1880 Mod | FT14: Clarke 1866 | FU14: Clarke 1866 | FV14: International | FW14: S. American 1969 | FX14: Everest 1830 | FY14: Clarke 1880 Mod | FZ14: Clarke 1880 Mod | GA14: Clarke 1880 Mod
A15: Depuis | B15: Monde / WGS84 | C15: WGS84 | D15: "-0000,00;-0000,00;-0000,00;-0,000;-0,000;-0,000;-0,000" | E15: "+0136,00;+0108,00;+0292,00;-0,000;-0,000;-0,000;-0,000" | F15: "+0012,62;-0156,56;-0180,52;-0,000;-0,000;-0,814;-0,427" | G15: "+0005,00;-0135,00;-0172,00;-0,000;-0,000;-0,000;-0,000" | H15: "-0000,00;-0000,00;-0000,00;-0,000;-0,000;-0,000;-0,000" | I15: "-0000,00;-0000,00;-0000,00;-0,000;-0,000;-0,000;-0,000" | J15: "+0231,00;+0196,00;-0482,00;-0,000;-0,000;-0,000;-0,000" | K15: "+0148,00;-0136,00;-0090,00;-0,000;-0,000;-0,000;-0,000" | L15: "+0057,00;-0001,00;+0041,00;-0,000;-0,000;-0,000;-0,000" | M15: "+0133,00;+0048,00;-0148,00;-0,000;-0,000;-0,000;-0,000" | N15: "+0122,00;+0041,00;-0150,00;-0,000;-0,000;-0,554;-0,227" | O15: "+0134,00;+0048,00;-0149,00;-0,000;-0,000;-0,000;-0,000" | P15: "+0150,00;+0251,00;+0002,00;-0,000;-0,000;-0,000;-0,000" | Q15: "-0289,00;-0734,00;-0257,00;-0,000;-0,000;-0,000;-0,000" | R15: "-0000,00;-0125,00;-0194,00;-0,000;-0,000;-0,000;-0,000" | S15: "+0288,00;-0175,00;+0376,00;-0,000;-0,000;-0,000;-0,000" | T15: "+0057,00;-0001,00;+0041,00;-0,000;-0,000;-0,000;-0,000" | U15: "+0138,00;+0105,00;+0289,00;-0,000;-0,000;-0,000;-0,000" | V15: "+0057,00;-0001,00;+0041,00;-0,000;-0,000;-0,000;-0,000" | W15: "+0689,00;-0691,00;+0046,00;-0,000;-0,000;-0,000;-0,000" | X15: "+0010,00;-0158,00;-0187,00;-0,000;-0,000;-0,000;-0,000" | Y15: "+0009,00;-0139,00;-0177,50;-0,000;-0,000;-0,554;-0,227" | Z15: "-0000,00;-0125,00;-0201,00;-0,000;-0,000;-0,000;-0,000" | AA15: "-0016,00;-0196,00;-0093,00;-0,000;-0,000;-0,000;-0,000" | AB15: "+0057,00;-0001,00;+0041,00;-0,000;-0,000;-0,000;-0,000" | AC15: "+0104,00;+0101,00;+0140,00;-0,000;-0,000;-0,000;-0,000" | AD15: "-0307,00;-0304,00;+0318,00;-0,000;-0,000;-0,000;-0,000" | AE15: "+0288,00;-0175,00;+0376,00;-0,000;-0,000;-0,000;-0,000" | AF15: "+0057,00;-0001,00;+0041,00;-0,000;-0,000;-0,000;-0,000" | AG15: "+0128,00;-0481,00;-0664,00;-0,000;-0,000;-0,000;-0,000" | AH15: "+0130,00;+0117,00;+0151,00;-0,000;-0,000;-0,000;-0,000" | AI15: "+0130,00;-0110,00;+0013,00;-0,000;-0,000;-0,000;-0,000" | AJ15: "+0249,00;+0156,00;-0381,00;-0,000;-0,000;-0,000;-0,000" | AK15: "+0288,00;-0175,00;+0376,00;-0,000;-0,000;-0,000;-0,000" | AL15: "+0057,00;-0001,00;+0041,00;-0,000;-0,000;-0,000;-0,000" | AM15: "-0639,00;-0405,00;-0060,00;-0,000;-0,000;-0,000;-0,000" | AN15: "+0088,00;+0109,00;+0122,00;-0,000;-0,000;-0,000;-0,000" | AO15: "-0170,00;-0042,00;-0084,00;-0,000;-0,000;-0,000;-0,000" | AP15: "+0165,00;+0011,00;-0206,00;-0,000;-0,000;-0,000;-0,000" | AQ15: "+0089,50;+0093,80;+0123,10;-0,000;-0,000;+0,156;-1,200" | AR15: "+0083,11;+0097,38;+0117,23;+0,006;+0,045;-0,044;-0,122" | AS15: "+0087,00;+0095,00;+0120,00;-0,000;-0,000;-0,000;-0,000" | AT15: "+0084,00;+0097,00;+0117,00;-0,000;-0,000;-0,000;+14,190" | AU15: "+0083,00;+0095,00;+0116,00;-0,000;-0,000;-0,000;+14,190" | AV15: "+0168,00;+0060,00;-0320,00;-0,000;-0,000;-0,000;+54,740" | AW15: "-0000,00;-0012,00;-0006,00;-0,000;-0,000;-0,000;-0,031" | AX15: "+0077,90;+0132,90;-0043,70;-0,000;-0,000;-0,000;-0,000" | AY15: "-0230,00;+0199,00;+0752,00;-0,000;-0,000;-0,000;-0,000" | AZ15: "+0084,00;+0095,00;+0130,00;-0,000;-0,000;-0,000;-0,000" | BA15: "-0011,00;-0114,00;-0195,00;-0,000;-0,000;-0,000;-0,000" | BB15: "-0164,00;-0138,00;+0189,00;-0,000;-0,000;-0,000;-0,000" | BC15: "-0000,00;-0125,00;-0194,00;-0,000;-0,000;-0,000;-0,000" | BD15: "+0288,00;-0175,00;+0376,00;-0,000;-0,000;-0,000;-0,000" | BE15: "+0057,00;-0001,00;+0041,00;-0,000;-0,000;-0,000;-0,000" | BF15: "-0000,00;-0125,00;-0194,00;-0,000;-0,000;-0,000;-0,000" | BG15: "+0156,00;+0271,00;+0189,00;-0,000;-0,000;-0,000;-0,000" | BH15: "+0073,00;-0046,00;+0086,00;-0,000;-0,000;-0,000;-0,000" | BI15: "+0127,00;+0769,00;-0472,00;-0,000;-0,000;-0,000;-0,000" | BJ15: "-0056,00;+0268,00;+0182,50;-0,000;-0,000;-0,554;-0,227" | BK15: "-0000,00;-0125,00;-0194,00;-0,000;-0,000;-0,000;-0,000" | BL15: "+0007,00;-0152,00;-0178,00;-0,000;-0,000;-0,000;-0,000" | BM15: "-0252,00;+0209,00;+0751,00;-0,000;-0,000;-0,000;-0,000" | BN15: "-0145,00;+0187,00;-0103,00;-0,000;-0,000;-0,000;-0,000" | BO15: "+0207,00;-0107,00;-0052,00;-0,000;-0,000;-0,000;-0,000" | BP15: "+0007,00;-0152,00;-0178,00;-0,000;-0,000;-0,000;-0,000" | BQ15: "+0007,00;-0152,00;-0178,00;-0,000;-0,000;-0,000;-0,000" | BR15: "+0499,00;+0249,00;-0314,00;-0,000;-0,000;-0,000;-0,000" | BS15: "+0203,00;-0141,00;-0053,00;-0,000;-0,000;-0,000;-0,000" | BT15: "+0097,00;+0103,00;+0120,00;-0,000;-0,000;-0,000;-0,000" | BU15: "+0255,00;+0065,00;-0009,00;-0,000;-0,000;-0,000;-0,000" | BV15: "+0097,00;+0088,00;+0135,00;-0,000;-0,000;-0,000;-0,000" | BW15: "-0114,00;+0116,00;+0333,00;-0,000;-0,000;-0,000;-0,000" | BX15: "-0208,00;+0435,00;+0229,00;-0,000;-0,000;-0,000;-0,000" | BY15: "+0007,00;-0152,00;-0178,00;-0,000;-0,000;-0,000;-0,000" | BZ15: "-0230,00;+0199,00;+0752,00;-0,000;-0,000;-0,000;-0,000" | CA15: "+0007,00;-0152,00;-0178,00;-0,000;-0,000;-0,000;-0,000" | CB15: "-0252,00;+0209,00;+0751,00;-0,000;-0,000;-0,000;-0,000" | CC15: "-0089,00;+0279,00;+0183,00;-0,000;-0,000;-0,000;-0,000" | CD15: "-0045,00;+0290,00;+0172,00;-0,000;-0,000;-0,000;-0,000" | CE15: "-0065,00;+0290,00;+0190,00;-0,000;-0,000;-0,000;-0,000" | CF15: "-0056,00;+0284,00;+0181,00;-0,000;-0,000;-0,000;-0,000" | CG15: "-0145,00;-0075,00;+0272,00;-0,000;-0,000;-0,000;-0,000" | CH15: "-0191,00;+0077,00;+0204,00;-0,000;-0,000;-0,000;-0,000" | CI15: "-0041,00;+0220,00;+0134,00;-0,000;-0,000;-0,000;-0,000" | CJ15: "-0124,00;+0234,00;+0025,00;-0,000;-0,000;-0,000;-0,000" | CK15: "-0185,00;-0165,00;-0042,00;-0,000;-0,000;-0,000;-0,000" | CL15: "+0320,00;-0550,00;+0494,00;-0,000;-0,000;-0,000;-0,000" | CM15: "+0203,00;-0141,00;-0053,00;-0,000;-0,000;-0,000;-0,000" | CN15: "+0632,00;-0438,00;+0609,00;-0,000;-0,000;-0,000;-0,000" | CO15: "-0051,00;-0391,00;+0036,00;-0,000;-0,000;-0,000;-0,000" | CP15: "+0002,00;-0150,00;-0181,00;-0,000;-0,000;-0,000;-0,000" | CQ15: "+0004,00;-0154,00;-0178,00;-0,000;-0,000;-0,000;-0,000" | CR15: "+0007,00;-0152,00;-0178,00;-0,000;-0,000;-0,000;-0,000" | CS15: "-0042,00;-0124,00;-0147,00;-0,000;-0,000;-0,000;-0,000" | CT15: "+0307,00;+0092,00;-0127,00;-0,000;-0,000;-0,000;-0,000" | CU15: "-0175,00;+0038,00;-0113,00;-0,000;-0,000;-0,000;-0,000" | CV15: "+0491,00;+0022,00;-0435,00;-0,000;-0,000;-0,000;-0,000" | CW15: "-0094,00;+0948,00;+1262,00;-0,000;-0,000;-0,000;-0,000" | CX15: "-0912,00;+0058,00;-1227,00;-0,000;-0,000;-0,000;-0,000" | CY15: "-0211,00;-0147,00;-0111,00;-0,000;-0,000;-0,000;-0,000" | CZ15: "+0425,00;+0169,00;-0081,00;-0,000;-0,000;-0,000;-0,000" | DA15: "+0104,00;-0167,00;+0038,00;-0,000;-0,000;-0,000;-0,000" | DB15: "+0073,00;-0213,00;-0296,00;-0,000;-0,000;-0,000;-0,000" | DC15: "+0355,00;-0016,00;-0074,00;-0,000;-0,000;-0,000;-0,000" | DD15: "+0133,00;+0321,00;-0050,00;-0,000;-0,000;-0,000;-0,000" | DE15: "-0101,00;-0052,00;+0039,00;-0,000;-0,000;-0,000;-0,000" | DF15: "-0298,00;+0304,00;+0375,00;-0,000;-0,000;-0,000;-0,000" | DG15: "+0289,00;+0124,00;-0060,00;-0,000;-0,000;-0,000;-0,000" | DH15: "+0007,00;-0152,00;-0178,00;-0,000;-0,000;-0,000;-0,000" | DI15: "+0002,00;-0374,00;-0172,00;-0,000;-0,000;-0,000;-0,000" | DJ15: "+0057,00;-0001,00;+0041,00;-0,000;-0,000;-0,000;-0,000" | DK15: "-0011,00;-0072,00;+0101,00;-0,000;-0,000;-0,000;-0,000" | DL15: "+0117,00;+0132,00;+0164,00;-0,000;-0,000;-0,000;-0,000" | DM15: "-0506,00;+0122,00;-0611,00;-0,000;-0,000;-0,000;-0,000" | DN15: "+0128,00;-0481,00;-0664,00;-0,000;-0,000;-0,000;-0,000" | DO15: "+0161,00;+0007,00;+0300,00;-0,000;-0,000;-0,000;-0,000" | DP15: "+0125,00;+0108,00;+0295,00;-0,000;-0,000;-0,000;-0,000" | DQ15: "+0090,00;-0040,00;-0088,00;-0,000;-0,000;-0,000;-0,000" | DR15: "+0689,00;-0691,00;+0046,00;-0,000;-0,000;-0,000;-0,000" | DS15: "+0011,00;-0851,00;-0005,00;-0,000;-0,000;-0,000;-0,000" | DT15: "+0161,00;+0073,00;+0317,00;-0,000;-0,000;-0,000;-0,000" | DU15: "+0163,00;+0020,00;-0220,00;-0,000;-0,000;-0,000;-0,000" | DV15: "-0031,00;-0146,00;-0047,00;-0,000;-0,000;-0,000;-0,000" | DW15: "-0065,00;+0272,00;+0192,50;-0,000;-0,000;-0,554;-0,227" | DX15: "+0012,00;-0130,00;-0190,00;-0,000;-0,000;-0,000;-0,000" | DY15: "+0133,00;+0079,00;+0072,00;-0,000;-0,000;-0,000;-0,000" | DZ15: "-0000,00;-0000,00;-0004,50;-0,000;-0,000;-0,814;+0,600" | EA15: "-0000,00;-0000,00;-0004,50;-0,000;-0,000;-0,814;+0,602" | EB15: "-0000,00;-0000,00;-0004,50;-0,000;-0,000;-0,814;+0,600" | EC15: "-0000,00;-0000,00;-0004,50;-0,000;-0,000;-0,554;-0,227" | ED15: "-0000,00;-0000,00;-0000,00;-0,000;-0,000;-0,000;-0,000" | EE15: "-0616,00;-0097,00;+0251,00;-0,000;-0,000;-0,000;-0,000" | EG15: "-0289,00;-0734,00;-0257,00;-0,000;-0,000;-0,000;-0,000" | EH15: "-0000,00;-0125,00;-0194,00;-0,000;-0,000;-0,000;-0,000" | EI15: "+0092,00;+0093,00;-0122,00;-0,000;-0,000;-0,000;-0,000" | EJ15: "+0087,00;+0095,00;+0120,00;-0,000;-0,000;-0,000;-0,000" | EK15: "-0084,00;+0022,00;-0209,00;-0,000;-0,000;-0,000;-0,000" | EL15: "+0346,00;+0001,00;-0224,00;-0,000;-0,000;-0,000;-0,000" | EM15: "+0134,00;-0229,00;+0029,00;-0,000;-0,000;-0,000;-0,000" | EN15: "+0057,00;-0001,00;+0041,00;-0,000;-0,000;-0,000;-0,000" | EO15: "+0288,00;-0175,00;+0376,00;-0,000;-0,000;-0,000;-0,000" | EP15: "+0057,00;-0001,00;+0041,00;-0,000;-0,000;-0,000;-0,000" | EQ15: "+0133,00;+0077,00;+0051,00;-0,000;-0,000;-0,000;-0,000" | ER15: "+0088,00;+0109,00;+0122,00;-0,000;-0,000;-0,000;-0,000" | ES15: "-0011,00;-0072,00;+0101,00;-0,000;-0,000;-0,000;-0,000" | ET15: "+0249,17;+0152,09;-0391,46;-0,000;-0,000;-0,000;-0,000" | EU15: "+0250,20;+0153,09;-0391,70;-0,000;-0,000;-0,000;-0,000" | EV15: "+0128,16;+0282,42;-0021,93;-0,000;-0,000;-0,000;-0,000" | EX15: "+0086,00;+0096,00;+0120,00;-0,000;-0,000;-0,000;-0,000" | EY15: "-0364,71;+0109,42;-0429,00;-0,000;-0,000;+0,156;-1,198" | FB15: "+0689,00;-0691,00;+0046,00;-0,000;-0,000;-0,000;-0,000" | FC15: "-0001,00;-0140,00;-0165,00;-0,000;-0,000;-0,000;-0,000" | FD15: "+0689,00;-0691,00;+0046,00;-0,000;-0,000;-0,000;-0,000" | FE15: "+0128,00;+0018,00;-0224,00;-0,000;-0,000;-0,000;-0,000" | FF15: "+0011,00;-0851,00;-0005,00;-0,000;-0,000;-0,000;-0,000" | FG15: "-0008,21;-0861,39;-0001,31;-0,000;-0,000;-0,814;+0,380" | FH15: "-0007,00;+0010,00;+0026,00;-0,000;-0,000;-0,000;-0,000" | FI15: "+0043,00;+0163,00;-0045,00;-0,000;-0,000;-0,000;-0,000" | FJ15: "+0161,00;+0014,00;-0205,00;-0,000;-0,000;-0,000;-0,000" | FK15: "+0097,00;-0787,00;-0086,00;-0,000;-0,000;-0,000;-0,000" | FL15: "+0377,00;-0681,00;+0050,00;-0,000;-0,000;-0,000;-0,000" | FM15: "+0265,00;-0120,00;+0358,00;-0,000;-0,000;-0,000;-0,000" | FN15: "+0134,00;+0105,00;+0295,00;-0,000;-0,000;-0,000;-0,000" | FO15: "+0158,00;+0012,00;+0299,00;-0,000;-0,000;-0,000;-0,000" | FP15: "+0134,00;+0048,00;-0149,00;-0,000;-0,000;-0,000;-0,000" | FQ15: "-0214,00;-0836,00;-0303,00;-0,000;-0,000;-0,000;-0,000" | FR15: "+0004,69;-0008,50;-0002,89;-0,000;-0,000;-0,000;-0,000" | FS15: "+0263,00;-0006,00;-0431,00;-0,000;-0,000;-0,000;-0,000" | FT15: "+0007,00;-0152,00;-0178,00;-0,000;-0,000;-0,000;-0,000" | FU15: "+0022,00;-0157,00;-0180,50;-0,000;-0,000;-0,554;-0,227" | FV15: "+0288,00;-0175,00;+0376,00;-0,000;-0,000;-0,000;-0,000" | FW15: "+0057,00;-0001,00;+0041,00;-0,000;-0,000;-0,000;-0,000" | FX15: "-0289,00;-0734,00;-0257,00;-0,000;-0,000;-0,000;-0,000" | FY15: "+0169,00;+0019,00;+0278,00;-0,000;-0,000;-0,000;-0,000" | FZ15: "+0147,00;+0074,00;+0283,00;-0,000;-0,000;-0,000;-0,000" | GA15: "+0142,00;+0096,00;+0293,00;-0,000;-0,000;-0,000;-0,000"
A16: Depuis | B16: Afrique du Sud / S Africa Cape | C16: Clarke 1880 Mod. | D16: "-0136,00;-0108,00;-0292,00;-0,000;-0,000;-0,000;-0,000"
A17: Depuis | B17: Alaska / NAD27 | C17: Clarke 1866 | D17: "-0012,62;+0156,56;+0180,52;-0,000;-0,000;+0,814;+0,427"
A18: Depuis | B18: Alaska / NAD27 | C18: Clarke 1866 | D18: "-0005,00;+0135,00;+0172,00;-0,000;-0,000;-0,000;-0,000"
A19: Depuis | B19: Alaska / NAD83 | C19: GRS80 | D19: "-0000,00;-0000,00;-0000,00;-0,000;-0,000;-0,000;-0,000"
A20: Depuis | B20: Amerique Central / NAD83 | C20: GRS80 | D20: "-0000,00;-0000,00;-0000,00;-0,000;-0,000;-0,000;-0,000"
A21: Depuis | B21: Arabie Saoudite / Nahrwan | C21: Clarke 1880 Mod. | D21: "-0231,00;-0196,00;+0482,00;-0,000;-0,000;-0,000;-0,000"
A22: Depuis | B22: Argentine / Campo Inchauste | C22: International | D22: "-0148,00;+0136,00;+0090,00;-0,000;-0,000;-0,000;-0,000"
A23: Depuis | B23: Argentine / S. America 1969 | C23: S America 1969 | D23: "-0057,00;+0001,00;-0041,00;-0,000;-0,000;-0,000;-0,000"
A24: Depuis | B24: Australie / Australian Geodetic 1966 | C24: RE 1967 | D24: "-0133,00;-0048,00;+0148,00;-0,000;-0,000;-0,000;-0,000"
A25: Depuis | B25: Australie / Australian Nat | C25: RE 1967 | D25: "-0122,00;-0041,00;+0150,00;-0,000;-0,000;+0,554;+0,227" | EC25: "-0122,00;-0041,00;+0146,00;-0,000;-0,000;-0,000;-0,000"
A26: Depuis | B26: Australie / Autralian | C26: RE 1984 | D26: "-0134,00;-0048,00;+0149,00;-0,000;-0,000;-0,000;-0,000"
A27: Depuis | B27: Bahreïn / Ain El Abl 1970 | C27: International | D27: "-0150,00;-0251,00;-0002,00;-0,000;-0,000;-0,000;-0,000"
A28: Depuis | B28: Bangladesh / Indian | C28: Everest 1830 | D28: "+0289,00;+0734,00;+0257,00;-0,000;-0,000;-0,000;-0,000"
A29: Depuis | B29: Belize / NAD27 | C29: Clarke 1866 | D29: "-0000,00;+0125,00;+0194,00;-0,000;-0,000;-0,000;-0,000"
A30: Depuis | B30: Bolivie / Prov. S America 1956 | C30: International | D30: "-0288,00;+0175,00;-0376,00;-0,000;-0,000;-0,000;-0,000"
A31: Depuis | B31: Bolivie / S. America 1969 | C31: S. America 1969 | D31: "-0057,00;+0001,00;-0041,00;-0,000;-0,000;-0,000;-0,000"
A32: Depuis | B32: Botswana / Cape Arc 1950 | C32: Clarke 1880 Mod | D32: "-0138,00;-0105,00;-0289,00;-0,000;-0,000;-0,000;-0,000"
A33: Depuis | B33: Bresil / S. America 1969 | C33: S. America 1969 | D33: "-0057,00;+0001,00;-0041,00;-0,000;-0,000;-0,000;-0,000"
A34: Depuis | B34: Brunei / Timbalai | C34: Everest 1830 | D34: "-0689,00;+0691,00;-0046,00;-0,000;-0,000;-0,000;-0,000"
A35: Depuis | B35: Canada / NAD27 | C35: Clarke 1866 | D35: "-0010,00;+0158,00;+0187,00;-0,000;-0,000;-0,000;-0,000"
B36: Canada / NAD27 (Canada) | C36: Clarke 1866 | D36: "-0009,00;+0139,00;+0177,50;-0,000;-0,000;+0,554;+0,227" | EC36: "-0009,00;+0139,00;+0173,00;-0,000;-0,000;-0,000;-0,000"
A37: Depuis | B37: Canal Panama / NAD27 | C37: Clarke 1866 | D37: "-0000,00;+0125,00;+0201,00;-0,000;-0,000;-0,000;-0,000"
A38: Depuis | B38: Chili / Prov. S Chilean 63 | C38: International | D38: "+0016,00;+0196,00;+0093,00;-0,000;-0,000;-0,000;-0,000"
A39: Depuis | B39: Chili / S. America 1969 | C39: S. America 1969 | D39: "-0057,00;+0001,00;-0041,00;-0,000;-0,000;-0,000;-0,000"
B40: Chypre / ED50 | C40: International | D40: "-0104,00;-0101,00;-0140,00;-0,000;-0,000;-0,000;-0,000"
A41: Depuis | B41: Colombie / Bogota Observatory | C41: International | D41: "+0307,00;+0304,00;-0318,00;-0,000;-0,000;-0,000;-0,000"
A42: Depuis | B42: Colombie / Prov. S America 1956 | C42: International | D42: "-0288,00;+0175,00;-0376,00;-0,000;-0,000;-0,000;-0,000"
A43: Depuis | B43: Colombie / S. America 1969 | C43: S. America 1969 | D43: "-0057,00;+0001,00;-0041,00;-0,000;-0,000;-0,000;-0,000"
A44: Depuis | B44: Corée / Tokyo | C44: Bessel 1841 | D44: "-0128,00;+0481,00;+0664,00;-0,000;-0,000;-0,000;-0,000"
B45: Egypte / ED50 | C45: International | D45: "-0130,00;-0117,00;-0151,00;-0,000;-0,000;-0,000;-0,000"
A46: Depuis | B46: Egypte / Old Egyptian | C46: Helmert 1906 | D46: "-0130,00;+0110,00;-0013,00;-0,000;-0,000;-0,000;-0,000"
A47: Depuis | B47: Emirats Arabes Unifies / Nahrwan | C47: Clarke 1880 Mod | D47: "-0249,00;-0156,00;+0381,00;-0,000;-0,000;-0,000;-0,000"
A48: Depuis | B48: Equateur / Prov. S American 1956 | C48: International | D48: "-0288,00;+0175,00;-0376,00;-0,000;-0,000;-0,000;-0,000"
A49: Depuis | B49: Equateur / S American 1969 | C49: S American 1969 | D49: "-0057,00;+0001,00;-0041,00;-0,000;-0,000;-0,000;-0,000"
A50: Depuis | B50: Erytree / Massawa | C50: Bessel 1841 | D50: "+0639,00;+0405,00;+0060,00;-0,000;-0,000;-0,000;-0,000"
B51: Espagne / ED50 | C51: International | D51: "-0088,00;-0109,00;-0122,00;-0,000;-0,000;-0,000;-0,000"
A52: Depuis | B52: Espiranto Santos / Santo (DOS) | C52: International | D52: "+0170,00;+0042,00;+0084,00;-0,000;-0,000;-0,000;-0,000"
A53: Depuis | B53: Ethiopie / Adindan | C53: Clarke 1880 Mod | D53: "-0165,00;-0011,00;+0206,00;-0,000;-0,000;-0,000;-0,000"
A54: Depuis | B54: Europe / ED50 | C54: International | D54: "-0089,50;-0093,80;-0123,10;-0,000;-0,000;-0,156;+1,200" | AR54: "-0006,39;+0003,58;-0005,87;-0,006;+0,045;-0,200;+1,078" | DZ54: "-0089,50;-0093,80;-0127,60;-0,000;-0,000;-0,970;+1,800" | EA54: "-0083,00;-0110,00;-0118,00;-0,000;-0,000;-0,000;-0,000" | EB54: "-0089,50;-0093,80;-0127,60;-0,000;-0,000;-0,970;+1,800" | EZ54: "-0116,50;+0041,20;-0038,60;-0,000;-0,000;-0,710;+0,973"
A55: Depuis | B55: Europe / ED87 | C55: International | D55: "-0083,11;-0097,38;-0117,23;-0,006;-0,045;+0,044;+0,122" | AQ55: "+0006,39;-0003,58;+0005,87;+0,006;-0,045;+0,200;-1,078" | ED55: "-0082,98;-0099,72;-0110,71;-0,105;+0,031;+0,080;-0,314"
B56: Finlande / ED50 | C56: International | D56: "-0087,00;-0095,00;-0120,00;-0,000;-0,000;-0,000;-0,000"
A57: Depuis | B57: France / ED50 IGN | C57: International | D57: "-0084,00;-0097,00;-0117,00;-0,000;-0,000;-0,000;-14,19"
A58: Depuis | B58: France / ED79 France | C58: International | D58: "-0083,00;-0095,00;-0116,00;-0,000;-0,000;-0,000;-14,19"
A59: Depuis | B59: France / IGN/NTF | C59: Clarke 1880 (IGN) | D59: "-0168,00;-0060,00;+0320,00;-0,000;-0,000;-0,000;-54,74"
A60: Depuis | B60: France / WGS72 France | C60: WGS72 | D60: "+0000,00;+0012,00;+0006,00;-0,000;-0,000;-0,000;+0,031"
A61: Depuis | B61: Gabon / M'Paraloko | C61: Clarke 1880 | D61: "-0077,90;-0132,90;+0043,70;-0,000;-0,000;-0,000;-0,000"
A62: Depuis | B62: Gizo / Gizo DOS 1968 | C62: International | D62: "+0230,00;-0199,00;-0752,00;-0,000;-0,000;-0,000;-0,000"
B63: Grece / ED50 | C63: International | D63: "-0084,00;-0095,00;-0130,00;-0,000;-0,000;-0,000;-0,000"
A64: Depuis | B64: Groenland / NAD27 | C64: Clarke 1866 | D64: "+0011,00;+0114,00;+0195,00;-0,000;-0,000;-0,000;-0,000"
A65: Depuis | B65: Groenland / Qornoq | C65: International | D65: "+0164,00;+0138,00;-0189,00;-0,000;-0,000;-0,000;-0,000"
A66: Depuis | B66: Guatemala / NAD27 | C66: Clarke 1866 | D66: "-0000,00;+0125,00;+0194,00;-0,000;-0,000;-0,000;-0,000"
A67: Depuis | B67: Guyana / Prov. S American 1956 | C67: International | D67: "-0288,00;+0175,00;-0376,00;-0,000;-0,000;-0,000;-0,000"
A68: Depuis | B68: Guyana / S American 1969 | C68: S American | D68: "-0057,00;+0001,00;-0041,00;-0,000;-0,000;-0,000;-0,000"
A69: Depuis | B69: Honduras / NAD27 | C69: Clarke 1866 | D69: "-0000,00;+0125,00;+0194,00;-0,000;-0,000;-0,000;-0,000"
A70: Depuis | B70: Hong Kong / Hong Kong 1963 | C70: International | D70: "-0156,00;-0271,00;-0189,00;-0,000;-0,000;-0,000;-0,000"
A71: Depuis | B71: Icelande / Hjorsey 1955 | C71: International | D71: "-0073,00;+0046,00;-0086,00;-0,000;-0,000;-0,000;-0,000"
A72: Depuis | B72: Ile d'Efate et Erromango / Bellevue (IGN) | C72: International | D72: "-0127,00;-0769,00;+0472,00;-0,000;-0,000;-0,000;-0,000"
A73: Depuis | B73: Ile d'Oahu / ? | C73: Clarke 1866 | D73: "+0056,00;-0268,00;-0182,50;-0,000;-0,000;+0,554;+0,227" | EC73: "+0056,00;-0268,00;-0187,00;-0,000;-0,000;-0,000;-0,000"
A74: Depuis | B74: Ile de Costa Rica / NAD27 | C74: Clarke 1866 | D74: "-0000,00;+0125,00;+0194,00;-0,000;-0,000;-0,000;-0,000"
A75: Depuis | B75: Ile de Cuba / NAD27 | C75: Clarke 1866 | D75: "-0007,00;+0152,00;+0178,00;-0,000;-0,000;-0,000;-0,000"
A76: Depuis | B76: Ile de Guam / Guam 1963 | C76: Clarke 1966 | D76: "+0252,00;-0209,00;-0751,00;-0,000;-0,000;-0,000;-0,000"
A77: Depuis | B77: Ile de Kerguelen / Kerguelen | C77: International | D77: "+0145,00;-0187,00;+0103,00;-0,000;-0,000;-0,000;-0,000"
A78: Depuis | B78: Ile de l'Ascension / Ascension 1958 | C78: International | D78: "-0207,00;+0107,00;+0052,00;-0,000;-0,000;-0,000;-0,000"
A79: Depuis | B79: Ile de la Barbades / NAD27 | C79: Clarke 1866 | D79: "-0007,00;+0152,00;+0178,00;-0,000;-0,000;-0,000;-0,000"
A80: Depuis | B80: Ile de la Jamaique / NAD27 | C80: Clarke 1866 | D80: "-0007,00;+0152,00;+0178,00;-0,000;-0,000;-0,000;-0,000"
A81: Depuis | B81: Ile de Madere / SE Base | C81: International | D81: "-0499,00;-0249,00;+0314,00;-0,000;-0,000;-0,000;-0,000"
A82: Depuis | B82: Ile de Sao Miguel / Sao Braz | C82: International | D82: "-0203,00;+0141,00;+0053,00;-0,000;-0,000;-0,000;-0,000"
B83: Ile de Sardaigne / ED50 | C83: International | D83: "-0097,00;-0103,00;-0120,00;-0,000;-0,000;-0,000;-0,000"
A84: Depuis | B84: Ile de Sardaigne / Rome 1940 | C84: International | D84: "-0255,00;-0065,00;+0009,00;-0,000;-0,000;-0,000;-0,000"
B85: Ile de Sicile / ED50 | C85: International | D85: "-0097,00;-0088,00;-0135,00;-0,000;-0,000;-0,000;-0,000"
A86: Depuis | B86: Ile de Tern / Asrto B4 | C86: International | D86: "+0114,00;-0116,00;-0333,00;-0,000;-0,000;-0,000;-0,000"
A87: Depuis | B87: Ile Diego Garcia / ISTS 073 Astro 1969 | C87: International | D87: "+0208,00;-0435,00;-0229,00;-0,000;-0,000;-0,000;-0,000"
A88: Depuis | B88: Ile Dominique / NAD27 | C88: Clarke 1866 | D88: "-0007,00;+0152,00;+0178,00;-0,000;-0,000;-0,000;-0,000"
A89: Depuis | B89: Ile Georgia / DOS 1968 | C89: International | D89: "+0230,00;-0199,00;-0752,00;-0,000;-0,000;-0,000;-0,000"
A90: Depuis | B90: Ile Grand Cayman / NAD27 | C90: Clarke 1866 | D90: "-0007,00;+0152,00;+0178,00;-0,000;-0,000;-0,000;-0,000"
A91: Depuis | B91: Ile Guadalcanal / Gux 1 Astro | C91: International | D91: "+0252,00;-0209,00;-0751,00;-0,000;-0,000;-0,000;-0,000"
A92: Depuis | B92: Ile Hawaii Hawaii / Old Hawaiian | C92: Clarke 1866 | D92: "+0089,00;-0279,00;-0183,00;-0,000;-0,000;-0,000;-0,000"
A93: Depuis | B93: Ile Hawaii Kauai / Old Hawaiian | C93: Clarke 1866 | D93: "+0045,00;-0290,00;-0172,00;-0,000;-0,000;-0,000;-0,000" | EC93: "+0271,00;-0046,00;-0181,0;-0,000;-0,000;-0,000;-0,000"
A94: Depuis | B94: Ile Hawaii Maui / Old Hawaiian | C94: Clarke 1866 | D94: "+0065,00;-0290,00;-0190,00;-0,000;-0,000;-0,000;-0,000" | EC94: "+0272,00;-0065,00;+0197,00;-0,000;-0,000;-0,000;-0,000"
A95: Depuis | B95: Ile Hawaii Oahu / Old Hawaiian | C95: Clarke 1866 | D95: "+0056,00;-0284,00;-0181,00;-0,000;-0,000;-0,000;-0,000" | EC95: "+0268,00;-0056,00;+0187,00;-0,000;-0,000;-0,000;-0,000"
A96: Depuis | B96: Ile Iwo Jima / Astro Beacon East | C96: International | D96: "+0145,00;+0075,00;-0272,00;-0,000;-0,000;-0,000;-0,000"
A97: Depuis | B97: Ile Johnson / Johnson Is 1961 | C97: International | D97: "+0191,00;-0077,00;-0204,00;-0,000;-0,000;-0,000;-0,000"
A98: Depuis | B98: Ile Mahe / Ile Mahe 1971 | C98: Clarke 1880 Mod | D98: "+0041,00;-0220,00;-0134,00;-0,000;-0,000;-0,000;-0,000"
A99: Depuis | B99: Ile Marcus / Asrto Stn 1952 | C99: International | D99: "+0124,00;-0234,00;-0025,00;-0,000;-0,000;-0,000;-0,000"
A100: Depuis | B100: Ile Pitcairn / Pitcairn Astro 1967 | C100: International | D100: "+0185,00;+0165,00;+0042,00;-0,000;-0,000;-0,000;-0,000"
B101: Ile Saint Helene / Astro DOS 7 | C101: International | D101: "-0320,00;+0550,00;-0494,00;-0,000;-0,000;-0,000;-0,000"
A102: Depuis | B102: Ile Santa Maria / Sao Braz | C102: International | D102: "-0203,00;+0141,00;+0053,00;-0,000;-0,000;-0,000;-0,000"
A103: Depuis | B103: Ile Tristan da Cunha / Tristan Astro | C103: International | D103: "-0632,00;+0438,00;-0609,00;-0,000;-0,000;-0,000;-0,000"
A104: Depuis | B104: Ile Viti Levu / Viti Levu 1916 | C104: Clarke 1880 Mod | D104: "+0051,00;+0391,00;-0036,00;-0,000;-0,000;-0,000;-0,000"
A105: Depuis | B105: Iles Bahamas / Cape Canaveral | C105: Clarke 1866 | D105: "-0002,00;+0150,00;+0181,00;-0,000;-0,000;-0,000;-0,000"
A106: Depuis | B106: Iles Bahamas / NAD27 | C106: Clarke 1866 | D106: "-0004,00;+0154,00;+0178,00;-0,000;-0,000;-0,000;-0,000"
A107: Depuis | B107: Iles Caicos / NAD27 | C107: Clarke 1866 | D107: "-0007,00;+0152,00;+0178,00;-0,000;-0,000;-0,000;-0,000"
A108: Depuis | B108: Iles Caiman / LC 5 Astro | C108: Clarke 1866 | D108: "+0042,00;+0124,00;+0147,00;-0,000;-0,000;-0,000;-0,000"
A109: Depuis | B109: Iles Canaries / Pico de las Nieves | C109: International | D109: "-0307,00;-0092,00;+0127,00;-0,000;-0,000;-0,000;-0,000"
A110: Depuis | B110: Iles Chatam / Ile Chatam 1971 | C110: International | D110: "+0175,00;-0038,00;+0113,00;-0,000;-0,000;-0,000;-0,000"
A111: Depuis | B111: Iles Cocos / Australian | C111: RE 1967 | D111: "-0491,00;-0022,00;+0435,00;-0,000;-0,000;-0,000;-0,000"
A112: Depuis | B112: Iles de Mascarenes / Reunion | C112: International | D112: "+0094,00;-0948,00;-1262,00;-0,000;-0,000;-0,000;-0,000"
A113: Depuis | B113: Iles de Midway / Midway Astro 1961 | C113: International | D113: "+0912,00;-0058,00;+1227,00;-0,000;-0,000;-0,000;-0,000"
A114: Depuis | B114: Iles de Paques / Iles de Paques 1967 | C114: International | D114: "+0211,00;+0147,00;+0111,00;-0,000;-0,000;-0,000;-0,000"
A115: Depuis | B115: Iles des Açores / Observatorio 1966 | C115: International | D115: "-0425,00;-0169,00;+0081,00;-0,000;-0,000;-0,000;-0,000"
A116: Depuis | B116: Iles des Açores / SW Base | C116: International | D116: "-0104,00;+0167,00;-0038,00;-0,000;-0,000;-0,000;-0,000"
A117: Depuis | B117: Iles des Bermudes / Bermuda 1957 | C117: Clarke 1866 | D117: "-0073,00;+0213,00;+0296,00;-0,000;-0,000;-0,000;-0,000"
A118: Depuis | B118: Iles Falklands / Sapper Hill 1943 | C118: International | D118: "-0355,00;+0016,00;+0074,00;-0,000;-0,000;-0,000;-0,000"
A119: Depuis | B119: Iles Maldives / Gandajika Base | C119: International | D119: "-0133,00;-0321,00;+0050,00;-0,000;-0,000;-0,000;-0,000"
A120: Depuis | B120: Iles Marshall / Wake Eniwetok 1960 | C120: Hough | D120: "+0101,00;+0052,00;-0039,00;-0,000;-0,000;-0,000;-0,000"
A121: Depuis | B121: Iles Phoenix / Canton Astro 1966 | C121: International | D121: "+0298,00;-0304,00;-0375,00;-0,000;-0,000;-0,000;-0,000"
A122: Depuis | B122: Iles Salvages / Marco Astro | C122: International | D122: "-0289,00;-0124,00;+0060,00;-0,000;-0,000;-0,000;-0,000"
A123: Depuis | B123: Iles Sous le Vent / NAD27 | C123: Clarke 1866 | D123: "-0007,00;+0152,00;+0178,00;-0,000;-0,000;-0,000;-0,000"
A124: Depuis | B124: Iles Trinité & Tobago / Naparima (BWI) | C124: International | D124: "-0002,00;+0374,00;+0172,00;-0,000;-0,000;-0,000;-0,000"
A125: Depuis | B125: Iles Trinité & Tobago / S. American 1969 | C125: S. American 1969 | D125: "-0057,00;+0001,00;-0041,00;-0,000;-0,000;-0,000;-0,000"
A126: Depuis | B126: Iles Vierges / Puerto Rico | C126: Clarke 1866 | D126: "+0011,00;+0072,00;-0101,00;-0,000;-0,000;-0,000;-0,000"
B127: Iran / ED50 | C127: International | D127: "-0117,00;-0132,00;-0164,00;-0,000;-0,000;-0,000;-0,000"
A128: Depuis | B128: Irelande / Ireland 1965 | C128: Airy Mod | D128: "+0506,00;-0122,00;+0611,00;-0,000;-0,000;-0,000;-0,000"
A129: Depuis | B129: Japon / Tokyo | C129: Bessel 1841 | D129: "-0128,00;+0481,00;+0664,00;-0,000;-0,000;-0,000;-0,000"
A130: Depuis | B130: Kenya / Cape Arc 1960 | C130: Clarke 1880 Mod | D130: "-0161,00;-0007,00;-0300,00;-0,000;-0,000;-0,000;-0,000"
A131: Depuis | B131: Lesotho / Cape Arc 1950 | C131: Clarke 1880 Mod | D131: "-0125,00;-0108,00;-0295,00;-0,000;-0,000;-0,000;-0,000"
A132: Depuis | B132: Liberia / Liberia 1964 | C132: Clarke 1880 Mod | D132: "-0090,00;+0040,00;+0088,00;-0,000;-0,000;-0,000;-0,000"
A133: Depuis | B133: Malaisie (Est) / Timbalia | C133: Everest 1830 | D133: "-0689,00;+0691,00;-0046,00;-0,000;-0,000;-0,000;-0,000"
A134: Depuis | B134: Malaisie (Ouest) / Kertau 1948 | C134: Everest Mod | D134: "-0011,00;+0851,00;+0005,00;-0,000;-0,000;-0,000;-0,000"
A135: Depuis | B135: Malawi / Cape Arc 1950 | C135: Clarke 1880 Mod | D135: "-0161,00;-0073,00;-0317,00;-0,000;-0,000;-0,000;-0,000"
A136: Depuis | B136: Mali / Adindan | C136: Clarke 1880 Mod | D136: "-0163,00;-0020,00;+0220,00;-0,000;-0,000;-0,000;-0,000"
A137: Depuis | B137: Maroc / Merchich | C137: Clarke 1880 Mod | D137: "+0031,00;+0146,00;+0047,00;-0,000;-0,000;-0,000;-0,000"
A138: Depuis | B138: Maui / Maui | C138: Clarke 1866 | D138: "+0065,00;-0272,00;-0192,50;-0,000;-0,000;+0,554;+0,227" | EC138: "+0065,00;-0272,00;-0197,00;-0,000;-0,000;-0,000;-0,000"
A139: Depuis | B139: Mexique / NAD27 | C139: Clarke 1866 | D139: "-0012,00;+0130,00;+0190,00;-0,000;-0,000;-0,000;-0,000"
A140: Depuis | B140: Mindanao / Luzon | C140: Clarke 1866 | D140: "-0133,00;-0079,00;-0072,00;-0,000;-0,000;-0,000;-0,000"
A141: Depuis | B141: Monde / DOPPLER | C141: Precise | D141: "-0000,00;-0000,00;+0004,50;-0,000;-0,000;+0,814;-0,600" | EB141: "-0000,00;-0000,00;-0000,00;-0,000;-0,000;-0,260;+0,827" | EC141: "-0000,00;-0000,00;-0000,00;-0,000;-0,000;+0,260;-0,827" | ED141: "-0000,00;-0000,00;+0004,50;-0,000;-0,000;+0,814;-6,000"
A142: Depuis | B142: Monde / NWL10D | C142: Broadcast | D142: "-0000,00;-0000,00;+0004,50;-0,000;-0,000;+0,814;-0,602"
A143: Depuis | B143: Monde / NWL9D | C143: Precise | D143: "-0000,00;-0000,00;+0004,50;-0,000;-0,000;+0,814;-0,600"
A144: Depuis | B144: Monde / WGS72 | C144: WGS72 | D144: "-0000,00;-0000,00;+0004,50;-0,000;-0,000;+0,554;+0,227"
B145: Monde / WGS84 SEA | C145: WGS84 | D145: "-0000,00;-0000,00;+0000,00;-0,000;-0,000;+0,000;-0,000"
A146: Depuis | B146: Namibie / Schwarzeck | C146: Bessel 1841 Mod | D146: "+0616,00;+0097,00;-0251,00;-0,000;-0,000;-0,000;-0,000"
A147: Depuis | B147: Neherlandes / RD | C147: Bessel RD | AQ147: "+0676,52;+0121,57;+0595,27;-0,000;-0,000;-0,000;-0,000"
A148: Depuis | B148: Nepal / Indian | C148: Everst 1830 | D148: "+0289,00;+0734,00;+0257,00;-0,000;-0,000;-0,000;-0,000"
A149: Depuis | B149: Nicaragua / NAD27 | C149: Clarke 1866 | D149: "-0000,00;+0125,00;+0194,00;-0,000;-0,000;-0,000;-0,000"
A150: Depuis | B150: Nigeria / Minna | C150: Clarke 1880 Mod | D150: "-0092,00;-0093,00;+0122,00;-0,000;-0,000;-0,000;-0,000"
B151: Norvège / ED50 | C151: International | D151: "-0087,00;-0095,00;-0120,00;-0,000;-0,000;-0,000;-0,000"
A152: Depuis | B152: Nouvelles Zelandes / GD 1949 | C152: International | D152: "+0084,00;-0022,00;+0209,00;-0,000;-0,000;-0,000;-0,000"
A153: Depuis | B153: Oman / Oman | C153: Clarke 1880 Mod | D153: "-0346,00;-0001,00;+0224,00;-0,000;-0,000;-0,000;-0,000"
A154: Depuis | B154: Paraguay / Chua Astro | C154: International | D154: "-0134,00;+0229,00;-0029,00;-0,000;-0,000;-0,000;-0,000"
A155: Depuis | B155: Paraguay / S American 1969 | C155: S American 1969 | D155: "-0057,00;+0001,00;-0041,00;-0,000;-0,000;-0,000;-0,000"
A156: Depuis | B156: Perou / Prov S American 1956 | C156: International | D156: "-0288,00;+0175,00;-0376,00;-0,000;-0,000;-0,000;-0,000"
A157: Depuis | B157: Perou / S American 1969 | C157: S American 1969 | D157: "-0057,00;+0001,00;-0041,00;-0,000;-0,000;-0,000;-0,000"
A158: Depuis | B158: Phillipines / Luzon 1911 | C158: Clarke 1866 | D158: "-0133,00;-0077,00;-0051,00;-0,000;-0,000;-0,000;-0,000"
B159: Portugal / ED50 | C159: International | D159: "-0088,00;-0109,00;-0122,00;-0,000;-0,000;-0,000;-0,000"
A160: Depuis | B160: Puerto Rico / Puerto Rico | C160: Clarke 1866 | D160: "+0011,00;+0072,00;-0101,00;-0,000;-0,000;-0,000;-0,000"
A161: Depuis | B161: Qatar / Nahrwan | C161: Clarke 1880 Mod | D161: "-0249,17;-0152,09;+0391,46;-0,000;-0,000;-0,000;+0,000"
B162: Qatar / Nahrwan Maersk | C162: Clarke 1880 Mod | D162: "-0250,20;-0153,09;+0391,70;-0,000;-0,000;-0,000;+0,000"
A163: Depuis | B163: Qatar / Qatar National | C163: International | D163: "-0128,16;-0282,42;+0021,93;-0,000;-0,000;-0,000;-0,000"
A164: Depuis | B164: Royaume Uni / DOPPLER | C164: Precise | EY164: "-0370,30;+0111,06;-0431,17;-0,000;-0,000;+0,800;-0,400"
A165: Depuis | B165: Royaume Uni / ED50 | C165: International | D165: "-0086,00;-0096,00;-0120,00;-0,000;-0,000;-0,000;-0,000" | EY165: "-0459,80;+0017,26;-0558,77;-0,000;-0,000;-0,170;+1,400"
A166: Depuis | B166: Royaume Uni / OS(SN)80 | C166: Airy | D166: "+0364,71;-0109,42;+0429,00;-0,000;-0,000;-0,156;+1,198" | EX166: "+0454,21;-0015,62;+0552,10;-0,000;-0,000;-0,000;-0,000"
A167: Depuis | B167: Russie / Pulkovo | C167: Krassovsky | AQ167: "+0116,00;-0041,20;+0038,60;-0,000;-0,000;+0,710;-0,973"
A168: Depuis | B168: Russie / WGS72 | C168: WGS72 | EZ168: "-0027,00;+0135,00;+0089,00;-0,000;-0,000;-0,000;-0,000"
A169: Depuis | B169: Sabah / Timbalai 1948 | C169: Everest 1830 | D169: "-0689,00;+0691,00;-0046,00;-0,000;-0,000;-0,000;-0,000"
A170: Depuis | B170: San Salvador / NAD27 | C170: Clarke 1866 | D170: "+0001,00;+0140,00;+0165,00;-0,000;-0,000;-0,000;-0,000"
A171: Depuis | B171: Sarawak / Timbalai 1948 | C171: Everst 1830 | D171: "-0689,00;+0691,00;-0046,00;-0,000;-0,000;-0,000;-0,000"
A172: Depuis | B172: Senegal / Adindan | C172: Clarke 1880 Mod | D172: "-0128,00;-0018,00;+0224,00;-0,000;-0,000;-0,000;-0,000"
A173: Depuis | B173: Singapour / Kertau 1948 | C173: Everest Mod | D173: "-0011,00;+0851,00;+0005,00;-0,000;-0,000;-0,000;-0,000"
A174: Depuis | B174: Singapour / Kertau 1948 | C174: Everest 1830 | D174: "+0008,21;+0861,39;+0001,31;-0,000;-0,000;+0,814;-0,380"
A175: Depuis | B175: Singapour / South Asia | C175: Fisher Mod | D175: "+0007,00;-0010,00;-0026,00;-0,000;-0,000;-0,000;-0,000"
A176: Depuis | B176: Somalie / Afgooye | C176: Krassovsky | D176: "-0043,00;-0163,00;+0045,00;-0,000;-0,000;-0,000;-0,000"
A177: Depuis | B177: Soudan / Adindan | C177: Clarke 1880 Mod | D177: "-0161,00;-0014,00;+0205,00;-0,000;-0,000;-0,000;-0,000"
A178: Depuis | B178: Sri Lanka / Kandawala | C178: Everest 1830 | D178: "-0097,00;+0787,00;+0086,00;-0,000;-0,000;-0,000;-0,000"
A179: Depuis | B179: Sumatra / Djakarta (Batavia) | C179: Bessel 1841 | D179: "-0377,00;+0681,00;-0050,00;-0,000;-0,000;-0,000;-0,000"
A180: Depuis | B180: Surinam / Zanderij | C180: International | D180: "-0265,00;+0120,00;-0358,00;-0,000;-0,000;-0,000;-0,000"
B181: Swaziland / Cape Arc 1950 | C181: Clarke 1880 | D181: "-0134,00;-0105,00;-0295,00;-0,000;-0,000;-0,000;-0,000"
A182: Depuis | B182: Tanzanie / Cape Arc 1960 | C182: Clarke 1880 | D182: "-0158,00;-0012,00;-0299,00;-0,000;-0,000;-0,000;-0,000"
A183: Depuis | B183: Tasmanie / Australian National | C183: RE 1967 | D183: "-0134,00;-0048,00;+0149,00;-0,000;-0,000;-0,000;-0,000"
A184: Depuis | B184: Thailande / Indian | C184: Everest 1830 | D184: "+0214,00;+0836,00;+0303,00;-0,000;-0,000;-0,000;-0,000"
A185: Depuis | B185: Thailande / Moattama | C185: WGS84 | D185: "-0004,69;+0008,50;+0002,89;-0,000;-0,000;-0,000;-0,000"
A186: Depuis | B186: Tunisie / Carthage | C186: Clarke 1880 Mod | D186: "-0263,00;+0006,00;+0431,00;-0,000;-0,000;-0,000;-0,000"
A187: Depuis | B187: Turquie / NAD27 | C187: Clarke 1866 | D187: "-0007,00;+0152,00;+0178,00;-0,000;-0,000;-0,000;-0,000"
A188: Depuis | B188: USA / NAD27 (CONUS) | C188: Clarke 1866 | D188: "-0022,00;+0157,00;+0180,50;-0,000;-0,000;+0,554;+0,227" | EC188: "-0022,00;+0157,00;+0176,00;-0,000;-0,000;-0,000;-0,000"
A189: Depuis | B189: Venezuela / Prov. S. American 1956 | C189: International | D189: "-0288,00;+0175,00;-0376,00;-0,000;-0,000;-0,000;-0,000"
A190: Depuis | B190: Venezuela / S. American 1969 | C190: S. American 1969 | D190: "-0057,00;+0001,00;-0041,00;-0,000;-0,000;-0,000;-0,000"
A191: Depuis | B191: Vietnam / Indian | C191: Everest 1830 | D191: "+0289,00;+0734,00;+0257,00;-0,000;-0,000;-0,000;-0,000"
A192: Depuis | B192: Zaire / Cape Arc 1950 | C192: Clarke 1880 | D192: "-0169,00;-0019,00;-0278,00;-0,000;-0,000;-0,000;-0,000"
A193: Depuis | B193: Zambie / Cape Arc 1950 | C193: Clarke 1880 | D193: "-0147,00;-0074,00;-0283,00;-0,000;-0,000;-0,000;-0,000"
A194: Depuis | B194: Zimbabwe / Cape Arc 1950 | C194: Clarke 1880 | D194: "-0142,00;-0096,00;-0293,00;-0,000;-0,000;-0,000;-0,000"
A195: Depuis | B195: /
A196: Depuis | B196: /
A197: Depuis | B197: /
A198: Depuis | B198: /
A199: Depuis | B199: /
A200: Depuis | B200: /
A201: Depuis | B201: /
... 2 more rows
